bitfinex-derivatives/quotes_BNBF0:USTF0_20241230
["timestamp","ask_amount","ask_price","bid_price","bid_amount"]
[1735583199814,0.2610434,705.85,704.27,1.04378336]
[1735583200206,0.2610434,705.84,704.27,1.04378336]
[1735583200411,0.2610434,705.83,704.27,1.04378336]
[1735583200611,0.2610434,705.82,704.27,1.04378336]
[1735583200816,0.2610434,705.81,704.3,1.04378336]
[1735583201113,0.2610434,705.8,704.3,1.04378336]
[1735583201314,0.2610434,705.79,704.3,1.04378336]
[1735583201707,0.2610434,705.78,704.3,1.04378336]
[1735583201913,0.26106116,705.77,704.3,1.04378336]
[1735583202112,1.74268456,705.77,704.23,1.04378336]
[1735583202313,0.26106116,705.76,704.23,1.04378336]
[1735583203315,0.26106116,705.76,704.18,1.04378336]
[1735583204314,0.26106116,705.76,704.26,1.04378336]
[1735583204511,0.2610503,705.75,704.26,1.04378336]
[1735583204818,0.2610503,705.74,704.26,1.04378336]
[1735583205112,0.2610503,705.76,704.26,1.04378336]
[1735583205312,0.2610503,705.75,704.28,1.04378336]
[1735583205717,0.2610503,705.74,704.28,1.04378336]
[1735583206118,0.2610503,705.76,704.3,1.04378336]
[1735583206321,0.2610503,705.73,704.3,1.04378336]
[1735583206520,0.2610503,705.75,704.3,1.04378336]
[1735583206713,0.2610503,705.72,704.3,1.04378336]
[1735583206916,0.2610503,705.74,704.3,1.04378336]
[1735583207115,0.26105193,705.73,704.29,1.04378336]
[1735583207315,0.26105193,705.76,704.29,1.04378336]
[1735583208817,0.26105193,705.75,704.29,1.04378336]
[1735583209014,0.26105193,705.74,704.29,1.04378336]
[1735583209316,0.26105193,705.73,704.4,1.04378336]
[1735583209722,0.26105193,705.76,704.4,1.04378336]
[1735583209919,1.4816234,705.77,704.4,1.04378336]
[1735583210119,0.26098174,705.72,704.4,1.04378336]
[1735583210322,0.26098174,705.76,704.56,1.04378336]
[1735583210720,0.26098174,705.71,704.56,1.04378336]
[1735583211021,1.4816234,705.77,704.56,1.04378336]
[1735583211022,0.26098174,705.76,704.56,1.04378336]
[1735583211216,0.26098174,705.75,704.56,1.04378336]
[1735583211519,0.26098174,705.75,704.26,1.04378336]
[1735583211520,0.26098174,705.76,704.57,1.04378336]
[1735583211714,0.26098174,705.75,704.57,1.04378336]
[1735583211919,1.4816234,705.77,704.57,1.04378336]
[1735583211920,0.26098174,705.76,704.57,1.04378336]
[1735583212119,0.26098174,705.74,704.57,1.04378336]
[1735583212421,0.26098174,705.73,704.56,1.04378336]
[1735583212617,0.26098174,705.76,704.56,1.04378336]
[1735583212819,0.26098174,705.75,704.56,1.04378336]
[1735583213025,0.26098174,705.76,704.56,1.04378336]
[1735583213325,0.26098174,705.75,704.46,1.04378336]
[1735583213723,0.26098174,705.74,704.46,1.04378336]
[1735583213923,0.26098174,705.76,704.46,1.04378336]
[1735583214124,0.26098174,705.73,704.46,1.04378336]
[1735583214317,0.26098174,705.72,704.46,1.04378336]
[1735583214522,0.26098174,705.76,704.34,1.04378336]
[1735583214718,0.26098174,705.75,704.34,1.04378336]
[1735583214923,1.4816234,705.77,704.34,1.04378336]
[1735583215125,0.26101916,705.74,704.34,1.04378336]
[1735583215319,0.26101916,705.76,704.34,1.04378336]
[1735583215719,0.26101451,705.75,704.34,1.04378336]
[1735583215919,0.26101451,705.76,704.33,1.04378336]
[1735583216118,0.26101451,705.74,704.33,1.04378336]
[1735583216324,0.26101451,705.73,704.33,1.04378336]
[1735583216725,0.26101451,705.72,704.33,1.04378336]
[1735583216922,0.26101451,705.72,704.26,1.04378336]
[1735583217225,0.26101451,705.71,704.26,1.04378336]
[1735583217525,0.26104217,705.7,704.26,1.04378336]
[1735583217924,0.26104217,705.69,704.26,1.04378336]
[1735583218124,0.26104217,705.68,704.26,1.04378336]
[1735583218321,0.26104217,705.68,704.25,1.04378336]
[1735583219322,0.26104217,705.68,703.4,2.1310577]
[1735583219323,0.26104217,705.68,704.24,1.04378336]
[1735583219724,0.28342261,705.66,704.24,1.04378336]
[1735583219923,0.26104217,705.65,704.24,1.04378336]
[1735583220123,0.28342261,705.66,704.24,1.04378336]
[1735583220424,0.26102794,705.65,704.28,1.04378336]
[1735583220624,0.28343466,705.63,704.28,1.04378336]
[1735583220823,0.26102794,705.62,704.28,1.04378336]
[1735583221022,0.28344671,705.6,704.28,1.04378336]
[1735583221429,0.26102794,705.59,704.3,1.04378336]
[1735583221625,0.28345876,705.57,704.3,1.04378336]
[1735583222029,0.26103405,705.56,704.3,1.04378336]
[1735583222527,0.28345876,705.57,704.29,1.04378336]
[1735583222727,0.26101077,705.56,704.29,1.04378336]
[1735583223533,0.26101077,705.56,704.48,1.04378336]
[1735583223731,0.28345876,705.57,704.48,1.04378336]
[1735583225331,0.28345876,705.57,704.5,1.04378336]
[1735583225627,0.26100851,705.56,704.5,1.04378336]
[1735583226027,0.28347081,705.54,704.5,1.04378336]
[1735583226225,0.26100851,705.53,704.5,1.04378336]
[1735583226432,0.26100851,705.53,704.0,1.25254004]
[1735583226433,0.28348287,705.51,704.55,1.04378336]
[1735583226630,0.26100851,705.5,704.55,1.04378336]
[1735583227630,0.26100851,705.5,704.52,1.04378336]
[1735583227831,0.28348287,705.51,704.52,1.04378336]
[1735583228429,0.28348287,705.51,704.19,1.04378336]
[1735583228430,1.74254914,705.5,704.42,1.04378336]
[1735583228634,0.2610151,705.49,704.42,1.04378336]
[1735583229236,0.2610151,705.49,704.32,1.04378336]
[1735583229435,1.48153404,705.5,704.32,1.04378336]
[1735583230537,1.48153404,705.5,704.42,1.04378336]
[1735583230738,0.26106572,705.49,704.42,1.04378336]
[1735583231541,0.26106572,705.49,704.31,1.04378336]
[1735583231740,1.48153404,705.5,704.31,1.04378336]
[1735583231937,0.26106839,705.48,704.31,1.04378336]
[1735583232240,0.26106839,705.49,704.31,1.04378336]
[1735583232439,0.26106839,705.47,704.31,1.04378336]
[1735583232643,0.26106839,705.47,704.28,1.04378336]
[1735583232937,0.26107129,705.46,704.28,1.04378336]
[1735583233140,0.26107129,705.49,704.28,1.04378336]
[1735583233339,0.26107129,705.48,704.28,1.04378336]
[1735583233541,0.26107129,705.47,704.22,1.04378336]
[1735583233739,0.26107129,705.46,704.22,1.04378336]
[1735583233937,0.26107129,705.49,704.22,1.04378336]
[1735583234138,0.28349894,705.47,704.22,1.04378336]
[1735583234340,0.26107129,705.46,704.22,1.04378336]
[1735583234538,0.26107129,705.46,704.23,1.04378336]
[1735583235142,0.26107541,705.45,704.23,1.04378336]
[1735583235344,0.26107541,705.46,704.23,1.04378336]
[1735583235542,0.26107541,705.45,704.23,1.04378336]
[1735583235742,0.26107541,705.45,703.97,1.04378336]
[1735583235743,0.26107541,705.44,704.2,1.04378336]
[1735583235943,0.26107541,705.46,704.2,1.04378336]
[1735583236143,0.26107541,705.45,704.2,1.04378336]
[1735583236643,0.26107541,705.44,704.2,1.04378336]
[1735583236846,0.26107541,705.44,704.18,1.04378336]
[1735583237043,0.26107541,705.43,704.18,1.04378336]
[1735583237240,0.28351903,705.42,704.18,1.04378336]
[1735583237445,0.26107541,705.41,704.18,1.04378336]
[1735583237746,0.28353109,705.39,704.15,1.04378336]
[1735583238138,0.26110328,705.38,704.15,1.04378336]
[1735583238545,0.26110328,705.38,704.12,1.04378336]
[1735583238845,0.28354315,705.36,704.12,1.04378336]
[1735583239241,0.26110328,705.35,704.12,1.04378336]
[1735583239447,0.26110328,705.35,703.42,2.1310577]
[1735583239448,0.26110328,705.35,704.1,1.04378336]
[1735583240345,0.26110328,705.35,704.08,1.04378336]
[1735583241446,0.26110328,705.35,704.04,1.04378336]
[1735583241845,0.28355521,705.33,704.04,1.04378336]
[1735583242045,0.26110328,705.32,704.07,1.04378336]
[1735583242844,0.28356727,705.3,704.07,1.04378336]
[1735583243149,0.26109455,705.29,704.06,1.04378336]
[1735583243948,0.26109455,705.29,703.31,2.1310577]
[1735583243949,0.26109455,705.29,704.09,1.04378336]
[1735583244247,0.28357933,705.27,704.09,1.04378336]
[1735583244846,0.26110014,705.26,704.09,1.04378336]
[1735583245242,0.28357933,705.27,704.09,1.04378336]
[1735583245647,0.26109594,705.26,704.09,1.04378336]
[1735583246050,0.2835914,705.24,704.09,1.04378336]
[1735583247348,0.26109924,705.23,704.07,1.04378336]
[1735583248247,0.2835914,705.24,704.07,1.04378336]
[1735583248446,0.26109905,705.23,704.07,1.04378336]
[1735583248651,0.26109905,705.23,704.09,1.04378336]
[1735583248953,1.4821966,705.22,704.09,1.04378336]
[1735583249350,0.26110742,705.21,704.09,1.04378336]
[1735583250848,0.26110742,705.21,703.5,0.74937635]
[1735583250849,0.26110758,705.2,704.06,1.04378336]
[1735583251053,0.26110758,705.19,704.06,1.04378336]
[1735583251256,0.2610908,705.21,704.06,1.04378336]
[1735583251554,0.26109465,705.2,704.06,1.04378336]
[1735583251749,0.26109465,705.19,704.06,1.04378336]
[1735583251952,0.26109465,705.18,704.06,1.04378336]
[1735583252154,0.26109465,705.21,704.17,1.04378336]
[1735583252348,0.26109465,705.2,704.17,1.04378336]
[1735583252551,0.26109465,705.21,704.17,1.04378336]
[1735583252751,0.26109465,705.19,704.17,1.04378336]
[1735583252948,1.4821966,705.22,704.17,1.04378336]
[1735583252949,0.26109465,705.18,704.17,1.04378336]
[1735583253147,0.26109465,705.18,703.95,1.04378336]
[1735583253148,0.26109465,705.21,704.13,1.04378336]
[1735583253351,0.26109465,705.17,704.13,1.04378336]
[1735583253553,0.26109465,705.16,704.13,1.04378336]
[1735583253747,0.26109465,705.15,704.13,1.04378336]
[1735583253949,0.26109465,705.21,704.13,1.04378336]
[1735583254251,0.26109465,705.2,704.12,1.04378336]
[1735583254757,0.26109465,705.19,704.12,1.04378336]
[1735583254950,0.26109465,705.21,704.12,1.04378336]
[1735583255151,0.26109465,705.2,704.12,1.04378336]
[1735583255352,0.26109465,705.19,704.12,1.04378336]
[1735583255553,0.26109465,705.18,704.14,1.04378336]
[1735583255753,0.26109465,705.21,704.14,1.04378336]
[1735583255953,0.26109608,705.17,704.14,1.04378336]
[1735583256156,1.4821966,705.22,704.14,1.04378336]
[1735583256357,0.26109412,705.21,704.14,1.04378336]
[1735583256660,0.26109412,705.21,704.17,1.04378336]
[1735583257461,0.26109412,705.21,704.24,1.04378336]
[1735583258057,1.4821966,705.22,704.24,1.04378336]
[1735583258258,1.4821966,705.22,703.81,1.25254004]
[1735583258259,0.26114047,705.2,704.2,1.04378336]
[1735583258460,0.26115983,705.19,704.2,1.04378336]
[1735583258658,0.26115983,705.21,704.2,1.04378336]
[1735583258859,0.26115983,705.2,704.2,1.04378336]
[1735583259055,0.26115983,705.19,704.2,1.04378336]
[1735583259454,0.26115983,705.18,704.2,1.04378336]
[1735583259661,0.26115983,705.18,703.68,2.1310577]
[1735583259662,0.26115983,705.21,703.67,1.04378336]
[1735583259858,0.26115983,705.2,703.67,1.04378336]
[1735583260063,0.26115983,705.19,703.67,0.94594049]
[1735583260264,0.26115983,705.18,703.67,0.94594049]
[1735583260466,0.26115983,705.21,703.67,0.94594049]
[1735583260665,0.26115983,705.2,703.36,1.04378336]
[1735583260859,0.26115983,705.19,703.36,1.04378336]
[1735583261062,0.26115983,705.21,703.36,1.04378336]
[1735583261265,0.26115983,705.18,703.36,1.04378336]
[1735583261465,0.26115983,705.2,703.36,1.04378336]
[1735583261661,0.26115983,705.19,703.36,1.04378336]
[1735583261863,0.26115983,705.21,703.31,1.04378336]
[1735583262059,0.26115983,705.2,703.31,1.04378336]
[1735583262263,0.26115983,705.19,703.31,1.04378336]
[1735583262766,0.26115983,705.18,703.36,1.04378336]
[1735583262960,0.26115983,705.17,703.36,1.04378336]
[1735583263159,0.26115983,705.16,703.36,1.04378336]
[1735583263363,0.26115983,705.15,703.36,1.04378336]
[1735583263558,0.26115983,705.14,703.36,1.04378336]
[1735583263760,0.26115983,705.21,703.36,1.04378336]
[1735583263962,1.48302301,705.13,703.36,1.04378336]
[1735583264162,0.26115983,705.12,703.34,1.04378336]
[1735583265963,0.26115983,705.12,703.32,1.04378336]
[1735583266567,0.26122989,705.11,703.32,1.04378336]
[1735583266866,0.26122989,705.1,703.32,1.04378336]
[1735583267069,0.26122989,705.12,703.32,1.04378336]
[1735583267266,0.26122989,705.11,703.36,1.04378336]
[1735583267566,0.26122989,705.12,703.36,1.04378336]
[1735583267761,0.26122989,705.11,703.36,1.04378336]
[1735583268069,0.26122989,705.12,703.36,1.04378336]
[1735583268269,0.26122989,705.1,703.36,1.04378336]
[1735583268468,0.26122989,705.11,703.36,1.04378336]
[1735583268668,0.26122989,705.1,702.86,1.04378336]
[1735583268870,1.48302301,705.13,702.87,0.28454764]
[1735583269169,0.26128848,705.12,702.87,0.28454764]
[1735583269769,0.26128562,705.11,702.87,0.28454764]
[1735583269970,0.26128562,705.12,702.87,0.28454764]
[1735583270269,0.26128562,705.11,702.87,0.28454764]
[1735583270469,0.26128562,705.1,702.87,0.28454764]
[1735583270868,0.26128562,705.12,702.87,0.28454764]
[1735583271070,1.48302301,705.13,702.87,0.28454764]
[1735583271071,0.26128562,705.09,702.87,0.28454764]
[1735583271274,0.26128562,705.11,702.87,0.28454764]
[1735583271471,0.26128562,705.1,702.87,0.28454764]
[1735583271765,0.26128562,705.09,702.87,0.28454764]
[1735583272171,0.26128562,705.08,702.87,0.28454764]
[1735583272470,0.26128562,705.07,702.87,0.28454764]
[1735583272869,0.26128562,705.06,702.87,0.28454764]
[1735583273170,0.26128562,705.12,702.87,0.28454764]
[1735583273362,1.48302301,705.13,702.87,0.28454764]
[1735583273567,1.48302301,705.13,703.11,1.04378336]
[1735583273767,0.26125353,705.11,703.11,1.04378336]
[1735583273971,0.26125353,705.12,703.11,1.04378336]
[1735583274171,0.26125353,705.1,703.11,1.04378336]
[1735583274367,1.48311255,705.1,703.11,1.04378336]
[1735583274571,0.26125274,705.09,703.09,1.04378336]
[1735583275273,0.26125274,705.09,703.15,1.04378336]
[1735583275664,0.26125274,705.09,702.88,0.75428719]
[1735583276972,0.2612295,705.08,702.88,0.75428719]
[1735583277767,0.26122143,705.07,702.88,0.75428719]
[1735583277970,0.26122143,705.07,703.36,1.05250255]
[1735583278572,0.26122143,705.06,703.36,1.05250255]
[1735583278771,0.26122143,705.05,703.36,1.05250255]
[1735583278972,0.26122143,705.09,703.36,1.05250255]
[1735583279174,0.26122143,705.09,703.39,1.05250255]
[1735583279475,0.26122143,705.08,703.39,1.05250255]
[1735583279674,0.26122796,705.07,703.39,1.05250255]
[1735583279869,0.26122796,705.07,703.4,1.05250255]
[1735583280569,0.26122796,705.06,703.4,1.05250255]
[1735583280869,0.26122796,705.05,703.37,1.05250255]
[1735583281274,0.26122796,705.04,703.37,1.05250255]
[1735583281476,0.26122796,705.09,703.37,1.05250255]
[1735583281674,0.26122796,705.08,703.37,1.05250255]
[1735583281875,0.26122796,705.09,703.37,1.05250255]
[1735583282069,0.26122796,705.07,703.39,1.05250255]
[1735583282273,0.26122796,705.06,703.39,1.05250255]
[1735583282575,0.26122796,705.05,703.39,1.05250255]
[1735583282768,0.26122796,705.09,703.39,1.05250255]
[1735583282967,0.26122796,705.04,703.45,1.05250255]
[1735583283168,0.26122796,705.03,703.45,1.05250255]
[1735583283367,0.26122796,705.02,703.45,1.05250255]
[1735583283571,0.26122796,705.01,703.45,1.05250255]
[1735583283775,0.26122796,705.0,703.43,1.05250255]
[1735583283974,0.26122796,705.09,703.43,1.05250255]
[1735583284174,0.26122796,705.08,703.43,1.05250255]
[1735583284470,0.26122796,705.07,703.44,1.05250255]
[1735583284775,0.26122796,705.06,703.44,1.05250255]
[1735583285174,0.26122796,705.05,703.44,1.05250255]
[1735583285374,1.48311255,705.1,703.44,1.05250255]
[1735583285574,1.48311255,705.1,703.52,1.05250255]
[1735583286775,1.48311255,705.1,703.01,2.14885937]
[1735583286776,1.48311255,705.1,703.14,1.05250255]
[1735583288174,1.48311255,705.1,703.2,1.05250255]
[1735583289075,0.26116722,705.09,703.2,1.05250255]
[1735583289277,0.26116722,705.09,703.45,1.05250255]
[1735583289475,1.48311255,705.1,703.45,1.05250255]
[1735583290277,1.48311255,705.1,703.64,1.05250255]
[1735583291378,1.48311255,705.1,703.65,1.05250255]
[1735583292177,0.26115843,705.09,703.65,1.05250255]
[1735583292470,0.26115843,705.09,702.98,2.14885937]
[1735583292471,0.26115843,705.09,703.62,1.05250255]
[1735583292675,0.2611618,705.08,703.62,1.05250255]
[1735583292871,0.2611618,705.07,703.62,1.05250255]
[1735583293070,0.2611618,705.06,703.62,1.05250255]
[1735583293275,0.2611888,705.06,703.62,1.05250255]
[1735583293479,0.2611888,705.05,703.64,1.05250255]
[1735583293676,0.2611888,705.09,703.64,1.05250255]
[1735583293875,0.2611888,705.04,703.64,1.05250255]
[1735583294273,0.2611888,705.03,703.76,1.05250255]
[1735583294473,0.2611888,705.09,703.76,1.05250255]
[1735583294777,1.74391249,705.08,703.76,1.05250255]
[1735583294976,0.26118962,705.07,703.76,1.05250255]
[1735583295878,0.28366782,705.05,703.76,1.05250255]
[1735583296074,0.26118962,705.04,703.76,1.05250255]
[1735583296578,0.26118962,705.04,703.27,2.14885937]
[1735583296579,0.26118962,705.04,703.78,1.05250255]
[1735583296973,0.26118572,705.03,703.78,1.05250255]
[1735583297172,0.26118572,705.04,703.78,1.05250255]
[1735583297377,0.26118784,705.03,703.76,1.05250255]
[1735583297678,0.26118784,705.02,703.76,1.05250255]
[1735583297979,0.28368794,705.0,703.76,1.05250255]
[1735583298278,0.26118784,704.99,703.75,1.05250255]
[1735583299278,0.26118784,704.99,703.77,1.05250255]
[1735583299977,0.26117811,704.98,703.77,1.05250255]
[1735583300175,0.28370403,704.96,703.7,1.05250255]
[1735583300378,0.26117811,704.95,703.7,1.05250255]
[1735583300579,0.28371611,704.93,703.7,1.05250255]
[1735583301480,0.28371611,704.93,703.74,1.05250255]
[1735583301981,0.26117993,704.92,703.74,1.05250255]
[1735583302182,0.28372818,704.9,703.74,1.05250255]
[1735583302376,0.28372818,704.9,703.18,2.14885937]
[1735583302377,0.28372818,704.9,703.7,1.05250255]
[1735583303681,0.28372818,704.9,703.71,1.05250255]
[1735583304078,0.26119023,704.89,703.71,1.05250255]
[1735583304481,0.26119351,704.88,703.72,1.05250255]
[1735583304779,0.28372818,704.9,703.72,1.05250255]
[1735583304980,0.26119304,704.89,703.72,1.05250255]
[1735583305176,1.48281237,704.87,703.72,1.05250255]
[1735583305374,1.48281237,704.87,703.71,1.05250255]
[1735583305778,0.28374831,704.85,703.71,1.05250255]
[1735583307083,0.28374831,704.85,703.77,1.05250255]
[1735583308478,0.28374831,704.85,703.21,2.14885937]
[1735583308479,0.28374831,704.85,703.74,1.05250255]
[1735583309979,0.28374831,704.85,703.33,2.14885937]
[1735583309980,0.28374831,704.85,703.67,1.05250255]
[1735583311184,0.28374831,704.85,703.69,1.05250255]
[1735583313189,0.28374831,704.85,703.75,1.05250255]
[1735583314391,0.28374831,704.85,703.81,1.05250255]
[1735583315388,0.28374831,704.85,703.87,1.05250255]
[1735583315991,0.28374831,704.85,703.89,1.05250255]
[1735583317193,0.28374831,704.85,703.93,1.05250255]
[1735583318595,0.28374831,704.85,703.95,1.05250255]
[1735583319896,0.28374831,704.85,703.38,2.14885937]
[1735583319897,0.28374831,704.85,703.83,1.05250255]
[1735583320691,0.28374831,704.85,703.8,1.05250255]
[1735583322096,0.28374831,704.85,703.13,2.14885937]
[1735583322097,0.28374831,704.85,703.81,1.05250255]
[1735583323094,0.28374831,704.85,703.84,1.05250255]
[1735583325497,0.28374831,704.85,703.81,1.05250255]
[1735583326494,0.28374831,704.85,703.83,1.05250255]
[1735583328603,0.28374831,704.85,703.84,1.05250255]
[1735583329795,0.28374831,704.85,703.91,1.05250255]
[1735583330801,0.28374831,704.85,703.9,1.05250255]
[1735583332203,0.28374831,704.85,703.67,1.05250255]
[1735583333703,0.28374831,704.85,703.69,1.05250255]
[1735583334602,0.28374831,704.85,703.65,1.05250255]
[1735583335707,0.28374831,704.85,702.88,0.75428719]
[1735583335708,0.28374831,704.85,703.64,1.05250255]
[1735583336806,0.28374831,704.85,703.87,1.05250255]
[1735583339409,0.28374831,704.85,703.89,1.05250255]
[1735583340008,0.28374831,704.85,703.87,1.05250255]
[1735583340715,0.28374831,704.85,703.88,1.05250255]
[1735583341912,0.28374831,704.85,703.26,2.14885937]
[1735583341913,0.28374831,704.85,703.91,1.05250255]
[1735583342911,0.28374831,704.85,704.06,1.05250255]
[1735583343911,0.28374831,704.85,704.04,1.05250255]
[1735583344508,0.28374831,704.85,704.03,1.05250255]
[1735583345809,0.28374831,704.85,704.01,1.05250255]
[1735583347116,0.28374831,704.85,703.99,1.05250255]
[1735583347917,0.28374831,704.85,704.01,1.05250255]
[1735583349017,0.28374831,704.85,703.99,1.05250255]
[1735583350420,0.28374831,704.85,703.98,1.05250255]
[1735583351415,0.28374831,704.85,703.95,1.05250255]
[1735583352316,0.28374831,704.85,703.98,1.05250255]
[1735583354222,0.28374831,704.85,704.0,1.05250255]
[1735583355428,0.28374831,704.85,703.92,1.05250255]
[1735583356424,0.28374831,704.85,703.85,1.05250255]
[1735583357526,0.28374831,704.85,703.89,1.05250255]
[1735583358728,0.28374831,704.85,703.87,1.05250255]
[1735583359626,0.28374831,704.85,703.81,1.05250255]
[1735583360732,0.28374831,704.85,703.79,1.05250255]
[1735583361826,0.28374831,704.85,703.84,1.05250255]
[1735583362729,0.28374831,704.85,704.06,1.05250255]
[1735583363728,0.28374831,704.85,704.03,1.05250255]
[1735583364530,0.28374831,704.85,704.0,1.05250255]
[1735583366427,0.28374831,704.85,704.04,1.05250255]
[1735583369838,0.28374831,704.85,704.2,1.05250255]
[1735583370337,1.48281237,704.87,704.2,1.05250255]
[1735583371441,1.48281237,704.87,703.92,1.05250255]
[1735583372143,1.05690479,706.29,703.92,1.05250255]
[1735583372345,1.48148148,705.54,703.92,1.05250255]
[1735583372742,1.05690479,706.3,703.93,1.05250255]
[1735583372944,1.48108215,705.61,703.93,1.05250255]
[1735583373144,1.05690479,706.3,703.93,1.05250255]
[1735583373743,0.28317381,706.28,703.93,1.05250255]
[1735583373939,0.28317381,706.28,703.55,2.41439813]
[1735583373940,0.28317381,706.28,704.58,1.05250255]
[1735583374444,1.47991693,706.27,704.58,1.05250255]
[1735583374644,0.28318584,706.25,704.58,1.05250255]
[1735583375039,0.28318584,706.25,704.62,1.05250255]
[1735583375938,0.28318584,706.25,703.93,1.05250255]
[1735583376143,0.28318584,706.25,704.04,0.28407476]
[1735583381553,0.28318584,706.25,704.37,1.04019114]
[1735583382656,0.28318584,706.25,704.36,1.04019114]
[1735583385058,0.28318584,706.25,704.28,1.04019114]
[1735583386058,0.28318584,706.25,704.31,1.04019114]
[1735583387154,0.28318584,706.25,704.04,0.28407476]
[1735583387155,0.28318584,706.25,704.32,1.04019114]
[1735583388256,0.28318584,706.25,704.44,1.04019114]
[1735583389259,0.28318584,706.25,704.4,1.04019114]
[1735583390655,0.28318584,706.25,704.38,1.04019114]
[1735583391559,0.28318584,706.25,704.43,1.04019114]
[1735583392158,0.26063084,706.24,704.43,1.04019114]
[1735583392560,0.28318584,706.25,704.59,1.04019114]
[1735583392760,0.26063106,706.24,704.59,1.04019114]
[1735583393457,0.26063106,706.24,704.57,1.04019114]
[1735583394758,0.26063106,706.24,704.6,1.04019114]
[1735583395059,0.26066315,706.23,704.6,1.04019114]
[1735583395260,0.26066315,706.24,704.6,1.04019114]
[1735583395461,0.26066315,706.22,704.6,1.04019114]
[1735583395656,0.26066315,706.23,704.55,1.04019114]
[1735583395861,0.26066315,706.22,704.55,1.04019114]
[1735583396367,0.26066315,706.21,704.55,1.04019114]
[1735583396561,0.26066315,706.24,704.55,1.04019114]
[1735583396761,0.26066315,706.23,704.55,1.04019114]
[1735583396955,0.26066315,706.22,704.49,1.04019114]
[1735583397155,0.26066315,706.24,704.49,1.04019114]
[1735583397360,0.26066315,706.23,704.49,1.04019114]
[1735583397563,0.26066315,706.22,704.49,1.04019114]
[1735583397857,0.26068758,706.21,704.5,1.04019114]
[1735583398055,0.26068758,706.2,704.5,1.04019114]
[1735583398359,0.26068758,706.19,704.5,1.04019114]
[1735583398662,0.26068758,706.18,704.5,1.04019114]
[1735583399063,0.26068758,706.18,703.81,2.14885937]
[1735583399064,0.26068758,706.18,704.54,1.04019114]
[1735583399656,0.26068758,706.18,704.55,0.28386913]
[1735583400062,1.48025266,706.19,704.55,0.28386913]
[1735583400063,1.48025266,706.19,704.64,1.04019114]
[1735583400257,0.26070278,706.17,704.64,1.04019114]
[1735583400455,0.26070015,706.16,704.64,1.04019114]
[1735583400661,1.48025266,706.19,704.64,1.04019114]
[1735583400856,0.28322594,706.15,704.64,1.04019114]
[1735583401263,0.28322594,706.15,704.6,1.04019114]
[1735583401458,0.26070708,706.14,704.6,1.04019114]
[1735583401664,0.26071673,706.13,704.6,1.04019114]
[1735583401862,0.28324198,706.11,704.6,1.04019114]
[1735583402066,0.28324198,706.11,704.55,0.28386913]
[1735583402067,0.28324198,706.11,704.65,1.04019114]
[1735583403467,0.28324198,706.11,704.78,1.04019114]
[1735583404067,0.28324198,706.11,704.83,1.04019114]
[1735583405265,0.28324198,706.11,704.93,1.04019114]
[1735583406869,0.28324198,706.11,705.23,1.04019114]
[1735583407971,0.28324198,706.11,705.51,1.04019114]
[1735583408966,1.47972291,706.1,705.46,1.04019114]
[1735583409665,1.47972291,706.1,705.42,1.04019114]
[1735583410770,1.47972291,706.1,704.69,2.14885937]
[1735583410771,1.47972291,706.1,705.48,1.04019114]
[1735583411673,1.47972291,706.1,705.52,1.04019114]
[1735583412771,1.47972291,706.1,705.5,1.04019114]
[1735583413869,1.47972291,706.1,705.53,1.04019114]
[1735583414976,1.47972291,706.1,705.49,1.04019114]
[1735583416078,1.47972291,706.1,705.48,1.04019114]
[1735583417577,1.47972291,706.1,705.47,1.04019114]
[1735583418384,1.47972291,706.1,705.5,1.04019114]
[1735583419682,1.47972291,706.1,705.48,1.04019114]
[1735583420682,1.47972291,706.1,705.5,1.04019114]
[1735583421580,1.47972291,706.1,704.7,2.14885937]
[1735583421581,1.47972291,706.1,705.48,1.04019114]
[1735583422680,1.47972291,706.1,705.07,1.05250255]
[1735583422681,1.47972291,706.1,705.47,1.04019114]
[1735583423881,1.47972291,706.1,705.57,1.04019114]
[1735583425176,1.47972291,706.1,705.61,1.04019114]
[1735583426482,1.47972291,706.1,705.55,1.04019114]
[1735583427682,1.47972291,706.1,705.52,1.04019114]
[1735583428683,1.47972291,706.1,705.55,1.04019114]
[1735583429981,1.47972291,706.1,705.49,1.04019114]
[1735583430680,1.47972291,706.1,705.54,1.04019114]
[1735583432184,1.47972291,706.1,705.56,1.04019114]
[1735583433285,1.47972291,706.1,705.53,1.04019114]
[1735583434382,1.47972291,706.1,705.46,1.04019114]
[1735583435485,0.28325001,706.09,705.38,1.04019114]
[1735583436477,0.28325001,706.09,704.96,1.04019114]
[1735583437685,0.28325001,706.09,704.94,1.04019114]
[1735583438785,0.28325001,706.09,704.96,1.04019114]
[1735583439583,0.28325001,706.09,704.56,1.05250255]
[1735583439584,0.28325001,706.09,705.1,1.04019114]
[1735583440788,0.28325001,706.09,705.11,1.04019114]
[1735583441681,0.28325001,706.09,705.43,1.04019114]
[1735583442787,0.28325001,706.09,705.36,1.04019114]
[1735583444187,0.28325001,706.09,705.33,1.04019114]
[1735583445689,0.28325001,706.09,705.29,1.04019114]
[1735583446290,0.28325001,706.09,705.43,1.04019114]
[1735583447492,0.28325001,706.09,705.35,1.04019114]
[1735583449395,0.28325001,706.09,705.3,1.04019114]
[1735583450193,0.28325001,706.09,705.33,1.04019114]
[1735583451595,0.28325001,706.09,705.3,1.04019114]
[1735583452799,0.28325001,706.09,705.28,1.04019114]
[1735583453999,0.28325001,706.09,705.27,1.04019114]